[Event "WTCC-50 2018"]
[Site "Radebeul"]
[Date "2018.07.11"]
[Round "5"]
[White "Ehlvest, Jaan"]
[Black "Schoene, Ralf"]
[Result "1-0"]
[ECO "C47"]
[WhiteElo "2536"]
[BlackElo "2256"]
[Annotator "ChessBase"]
[PlyCount "76"]
[EventDate "2018.07.07"]
[EventType "team-tourn"]
[EventCountry "GER"]
[SourceTitle "playchess.com"]
[Source "ChessBase"]
[SourceQuality "1"]
[TimeControl "40/5400+30:1800+30"]

1. e4 {[%emt 0:00:00]} e5 {[%emt 0:00:00]} 2. Nf3 {[%emt 0:00:00]} Nc6 {[%emt 0:00:00]} 3. Nc3 {[%emt 0:00:24]} Nf6 {[%emt 0:00:21]} 4. g3 {[%emt 0:00:06]} Bc5 {[%emt 0:04:11]} 5. Bg2 {[%emt 0:01:19]} d6 {[%emt 0:00:59]} 6. d3 {[%emt 0:00:34]} O-O {[%emt 0:03:10]} 7. O-O {[%emt 0:00:37]} Bg4 {[%emt 0:03:33]} 8. h3 {[%emt 0:00:14]} Bxf3 {[%emt 0:02:18]} 9. Bxf3 {[%emt 0:00:08]} a6 {[%emt 0:00:39]} 10. Bg2 {[%emt 0:00:08]} b5 {[%emt 0:07:54]} 11. a3 {[%emt 0:03:34]} Ne7 {[%emt 0:11:44]} 12. Kh2 {[%emt 0:03:06]} Ne8 {[%emt 0:05:47]} 13. Ne2 {[%emt 0:02:33]} c6 {[%emt 0:01:28]} 14. f4 {[%emt 0:01:13]} Ba7 {[%emt 0:09:30]} 15. c3 {[%emt 0:01:28]} c5 {[%emt 0:03:08]} 16. Ng1 {[%emt 0:04:06]} Rc8 {[%emt 0:02:18]} 17. f5 {[%emt 0:05:52]} d5 {[%emt 0:04:23]} 18. exd5 {[%emt 0:10:29]} Nxd5 {[%emt 0:00:11]} 19. Nf3 {[%emt 0:00:11]} Qd6 {[%emt 0:09:32]} 20. Ng5 {[%emt 0:07:28]} Nef6 {[%emt 0:01:09]} 21. Ne4 {[%emt 0:09:42]} Qb6 {[%emt 0:01:17]} 22. a4 {[%emt 0:02:23]} Nxe4 {[%emt 0:02:50]} 23. dxe4 {[%emt 0:05:07]} Nf6 {[%emt 0:01:02]} 24. axb5 {[%emt 0:00:08]} axb5 {[%emt 0:01:11]} 25. Be3 {[%emt 0:00:04]} Rfd8 {[%emt 0:04:33]} 26. Qe2 {[%emt 0:00:58]} Rd7 {[%emt 0:02:11]} 27. g4 {[%emt 0:00:19]} Qb8 {[%emt 0:01:55]} 28. g5 {[%emt 0:03:38]} Ne8 {[%emt 0:00:18]} 29. Rfd1 {[%emt 0:05:07]} Rxd1 {[%emt 0:02:43]} 30. Qxd1 {[%emt 0:00:19]} Rd8 {[%emt 0:01:12]} 31. Qe2 {[%emt 0:05:13]} Nd6 {[%emt 0:03:22]} 32. b3 {[%emt 0:02:20]} Bb6 {[%emt 0:01:40]} 33. c4 {[%emt 0:00:22]} bxc4 {[%emt 0:01:00]} 34. bxc4 {[%emt 0:00:05]} Qc7 {[%emt 0:00:40]} 35. Qa2 {[%emt 0:02:55]} Nc8 {[%emt 0:00:32]} 36. Qa4 {[%emt 0:03:58]} Na7 {[%emt 0:00:55]} 37. Rd1 {[%emt 0:00:36]} Kf8 {[%emt 0:06:15]} 38. f6 {[%emt 0:09:22]} Nc6 {[%emt 0:00:00]} 1-0

[Event "WTCC-50 2018"]
[Site "Radebeul"]
[Date "2018.07.11"]
[Round "5"]
[White "Schlosser, Philipp"]
[Black "Taggatz, Mario"]
[Result "1-0"]
[ECO "A21"]
[WhiteElo "2501"]
[BlackElo "2191"]
[Annotator "ChessBase"]
[PlyCount "81"]
[EventDate "2018.07.07"]
[EventType "team-tourn"]
[EventCountry "GER"]
[SourceTitle "playchess.com"]
[Source "ChessBase"]
[SourceQuality "1"]
[TimeControl "40/5400+30:1800+30"]

1. c4 {[%emt 0:01:45]} e5 {[%emt 0:00:07]} 2. Nc3 {[%emt 0:00:40]} d6 {[%emt 0:01:43]} 3. Nf3 {[%emt 0:04:58]} f5 {[%emt 0:00:28]} 4. d4 {[%emt 0:00:23]} e4 {[%emt 0:00:11]} 5. Ng5 {[%emt 0:00:06]} Be7 {[%emt 0:00:31]} 6. Nd5 {[%emt 0:01:46]} c6 {[%emt 0:02:47]} 7. Nxe7 {[%emt 0:00:27]} Qxe7 {[%emt 0:00:11]} 8. Nh3 {[%emt 0:08:08]} Nf6 {[%emt 0:01:38]} 9. Bf4 {[%emt 0:00:30]} O-O {[%emt 0:04:36]} 10. e3 {[%emt 0:00:14]} Rd8 {[%emt 0:05:52]} 11. Be2 {[%emt 0:10:54]} c5 {[%emt 0:01:56]} 12. O-O {[%emt 0:06:21]} Na6 {[%emt 0:08:41]} 13. Bg5 {[%emt 0:18:05]} Be6 {[%emt 0:09:57]} 14. f3 {[%emt 0:03:59]} exf3 {[%emt 0:04:16]} 15. Rxf3 {[%emt 0:02:16]} h6 {[%emt 0:06:27]} 16. Bxf6 {[%emt 0:01:38]} Qxf6 {[%emt 0:00:06]} 17. Nf4 {[%emt 0:03:01]} Nc7 {[%emt 0:05:53]} 18. Qd2 {[%emt 0:03:01]} Bf7 {[%emt 0:10:03]} 19. Raf1 {[%emt 0:01:54]} Qe7 {[%emt 0:02:14]} 20. Bd3 {[%emt 0:01:56]} g6 {[%emt 0:05:28]} 21. Rg3 {[%emt 0:03:14]} Kh7 {[%emt 0:03:25]} 22. Qf2 {[%emt 0:05:02]} Rg8 {[%emt 0:02:16]} 23. Ne2 {[%emt 0:02:42]} Raf8 {[%emt 0:02:10]} 24. Nc3 {[%emt 0:00:44]} Ne8 {[%emt 0:05:19]} 25. Rf3 {[%emt 0:03:21]} cxd4 {[%emt 0:03:49]} 26. exd4 {[%emt 0:00:15]} Nf6 {[%emt 0:03:37]} 27. h3 {[%emt 0:01:47]} Qc7 {[%emt 0:01:38]} 28. b3 {[%emt 0:05:21]} Rg7 {[%emt 0:02:40]} 29. Nb5 {[%emt 0:04:35]} Qb6 {[%emt 0:02:08]} 30. d5 {[%emt 0:00:35]} Qd8 {[%emt 0:01:44]} 31. Qxa7 {[%emt 0:00:17]} Nd7 {[%emt 0:00:36]} 32. Bb1 {[%emt 0:01:02]} Ne5 {[%emt 0:00:12]} 33. R3f2 {[%emt 0:00:26]} Qd7 {[%emt 0:00:41]} 34. Qb6 {[%emt 0:00:58]} Rd8 {[%emt 0:00:30]} 35. Qc7 {[%emt 0:00:47]} Be8 {[%emt 0:01:28]} 36. Qxd7 {[%emt 0:00:10]} Rgxd7 {[%emt 0:00:02]} 37. Nd4 {[%emt 0:01:12]} Bf7 {[%emt 0:00:18]} 38. Re2 {[%emt 0:01:06]} Re8 {[%emt 0:01:02]} 39. Nxf5 {[%emt 0:01:07]} Rdd8 {[%emt 0:02:10]} 40. Nd4 {[%emt 0:00:11]} Kg7 {[%emt 0:00:23]} 41. Rfe1 {[%emt 0:30:27]} 1-0

[Event "WTCC-50 2018"]
[Site "Radebeul"]
[Date "2018.07.11"]
[Round "5"]
[White "Speelman, Jon S"]
[Black "Graf, Alexander"]
[Result "1/2-1/2"]
[ECO "A05"]
[WhiteElo "2493"]
[BlackElo "2561"]
[Annotator "ChessBase"]
[PlyCount "89"]
[EventDate "2018.07.07"]
[EventType "team-tourn"]
[EventCountry "GER"]
[SourceTitle "playchess.com"]
[Source "ChessBase"]
[SourceQuality "1"]
[TimeControl "40/5400+30:1800+30"]

1. Nf3 {[%emt 0:00:06]} Nf6 {[%emt 0:00:00]} 2. c4 {[%emt 0:00:50]} e6 {[%emt 0:00:14]} 3. g3 {[%emt 0:02:12]} d5 {[%emt 0:04:37]} 4. d4 {[%emt 0:01:14]} Bb4+ {[%emt 0:03:17]} 5. Bd2 {[%emt 0:00:19]} Be7 {[%emt 0:00:13]} 6. Bg2 {[%emt 0:00:30]} O-O {[%emt 0:00:10]} 7. O-O {[%emt 0:00:06]} c6 {[%emt 0:00:45]} 8. Qc2 {[%emt 0:01:50]} b6 {[%emt 0:00:21]} 9. Rc1 {[%emt 0:11:03]} Bb7 {[%emt 0:10:26]} 10. Bg5 {[%emt 0:03:04]} h6 {[%emt 0:08:27]} 11. Bxf6 {[%emt 0:00:09]} Bxf6 {[%emt 0:00:08]} 12. Nbd2 {[%emt 0:01:56]} Na6 {[%emt 0:01:36]} 13. e4 {[%emt 0:01:13]} dxe4 {[%emt 0:13:57]} 14. Nxe4 {[%emt 0:01:48]} c5 {[%emt 0:01:13]} 15. Nxf6+ {[%emt 0:03:50]} Qxf6 {[%emt 0:00:15]} 16. Ng5 {[%emt 0:00:04]} hxg5 {[%emt 0:00:13]} 17. Bxb7 {[%emt 0:00:03]} Nb4 {[%emt 0:00:17]} 18. Qb3 {[%emt 0:00:53]} Rab8 {[%emt 0:01:03]} 19. Bg2 {[%emt 0:00:38]} Qf5 {[%emt 0:06:48]} 20. a3 {[%emt 0:06:35]} Nd3 {[%emt 0:01:23]} 21. Rd1 {[%emt 0:04:25]} Nxf2 {[%emt 0:03:31]} 22. Rf1 {[%emt 0:06:29]} Qd3 {[%emt 0:04:40]} 23. Qxd3 {[%emt 0:00:05]} Nxd3 {[%emt 0:00:07]} 24. d5 {[%emt 0:00:02]} Nxb2 {[%emt 0:00:16]} 25. Rfc1 {[%emt 0:01:21]} exd5 {[%emt 0:08:41]} 26. Bxd5 {[%emt 0:00:05]} Nd3 {[%emt 0:00:40]} 27. Rc3 {[%emt 0:04:23]} Ne5 {[%emt 0:01:45]} 28. Re3 {[%emt 0:02:04]} Ng4 {[%emt 0:00:10]} 29. Re7 {[%emt 0:00:05]} a5 {[%emt 0:00:07]} 30. Rae1 {[%emt 0:02:00]} Nf6 {[%emt 0:02:27]} 31. Ra7 {[%emt 0:01:33]} Nxd5 {[%emt 0:03:50]} 32. cxd5 {[%emt 0:00:04]} Rbd8 {[%emt 0:00:26]} 33. Re5 {[%emt 0:00:36]} Rd6 {[%emt 0:00:55]} 34. Rxg5 {[%emt 0:03:40]} Rfd8 {[%emt 0:00:19]} 35. Rb7 {[%emt 0:00:17]} c4 {[%emt 0:01:33]} 36. Rg4 {[%emt 0:06:18]} Rxd5 {[%emt 0:00:34]} 37. Rxc4 {[%emt 0:00:23]} Rd1+ {[%emt 0:07:25]} 38. Kg2 {[%emt 0:00:06]} R8d2+ {[%emt 0:01:20]} 39. Kh3 {[%emt 0:00:38]} Rh1 {[%emt 0:00:08]} 40. Rb8+ {[%emt 0:01:24]} Kh7 {[%emt 0:00:11]} 41. Rh4+ {[%emt 0:30:16]} Kg6 {[%emt 0:30:06]} 42. Rxb6+ {[%emt 0:00:04]} f6 {[%emt 0:01:51]} 43. Rg4+ {[%emt 0:00:07]} Kh5 {[%emt 0:03:22]} 44. Rh4+ {[%emt 0:00:11]} Kg5 {[%emt 0:03:37]} 45. Rg4+ {[%emt 0:00:06]} 1/2-1/2

[Event "WTCC-50 2018"]
[Site "Radebeul"]
[Date "2018.07.11"]
[Round "5"]
[White "Kudrin, Sergey"]
[Black "Vollak, Andreas"]
[Result "1/2-1/2"]
[ECO "C10"]
[WhiteElo "2468"]
[BlackElo "2027"]
[Annotator "ChessBase"]
[PlyCount "46"]
[EventDate "2018.07.07"]
[EventType "team-tourn"]
[EventCountry "GER"]
[SourceTitle "playchess.com"]
[Source "ChessBase"]
[SourceQuality "1"]
[TimeControl "40/5400+30:1800+30"]

1. e4 {[%emt 0:00:00]} e6 {[%emt 0:00:00]} 2. d4 {[%emt 0:00:00]} d5 {[%emt 0:00:00]} 3. Nd2 {[%emt 0:00:00]} dxe4 {[%emt 0:00:19]} 4. Nxe4 {[%emt 0:00:02]} Nd7 {[%emt 0:00:34]} 5. g3 {[%emt 0:12:35]} Ngf6 {[%emt 0:02:29]} 6. Nxf6+ {[%emt 0:00:13]} Nxf6 {[%emt 0:00:34]} 7. Bg2 {[%emt 0:00:09]} c5 {[%emt 0:04:15]} 8. Ne2 {[%emt 0:00:41]} Bd6 {[%emt 0:03:30]} 9. O-O {[%emt 0:03:47]} O-O {[%emt 0:02:14]} 10. c4 {[%emt 0:01:23]} Qc7 {[%emt 0:11:21]} 11. Nc3 {[%emt 0:21:28]} Bd7 {[%emt 0:07:53]} 12. Be3 {[%emt 0:09:24]} cxd4 13. Bxd4 {[%emt 0:00:55]} Be7 {[%emt 0:15:42]} 14. Qe2 {[%emt 0:08:55]} Rac8 {[%emt 0:03:46]} 15. b3 {[%emt 0:01:24]} Bc6 {[%emt 0:07:30]} 16. Nb5 {[%emt 0:06:49]} Bxb5 {[%emt 0:05:25]} 17. cxb5 {[%emt 0:00:03]} Rfd8 {[%emt 0:03:02]} 18. Rfd1 {[%emt 0:07:03]} h6 {[%emt 0:10:09]} 19. a4 {[%emt 0:02:25]} Nd5 {[%emt 0:04:46]} 20. a5 {[%emt 0:07:33]} b6 {[%emt 0:02:08]} 21. axb6 {[%emt 0:06:02]} axb6 {[%emt 0:00:14]} 22. Qg4 {[%emt 0:00:35]} Bf8 {[%emt 0:01:18]} 23. h4 {[%emt 0:03:26]} Qc2 {[%emt 0:01:48]} 1/2-1/2

[Event "WTCC-50 2018"]
[Site "Radebeul"]
[Date "2018.07.11"]
[Round "5"]
[White "Penzold, Andreas"]
[Black "Benjamin, Joel"]
[Result "0-1"]
[ECO "A21"]
[WhiteElo "2389"]
[BlackElo "2544"]
[Annotator "ChessBase"]
[PlyCount "52"]
[EventDate "2018.07.07"]
[EventType "team-tourn"]
[EventCountry "GER"]
[SourceTitle "playchess.com"]
[Source "ChessBase"]
[SourceQuality "1"]
[TimeControl "40/5400+30:1800+30"]

1. c4 {[%emt 0:00:00]} e5 {[%emt 0:00:00]} 2. Nc3 {[%emt 0:00:00]} Bb4 {[%emt 0:00:00]} 3. Nd5 {[%emt 0:00:46]} Bc5 {[%emt 0:00:02]} 4. Nf3 {[%emt 0:00:50]} c6 {[%emt 0:00:33]} 5. Nc3 {[%emt 0:01:24]} d6 {[%emt 0:00:26]} 6. d4 {[%emt 0:03:22]} exd4 {[%emt 0:00:33]} 7. Nxd4 {[%emt 0:00:08]} Nf6 {[%emt 0:00:33]} 8. Nb3 {[%emt 0:06:12]} Bb4 {[%emt 0:05:36]} 9. Qd3 {[%emt 0:02:44]} Nbd7 {[%emt 0:10:02]} 10. a3 {[%emt 0:05:46]} Ne5 {[%emt 0:00:14]} 11. Qg3 {[%emt 0:00:29]} Bxc3+ {[%emt 0:01:55]} 12. Qxc3 {[%emt 0:00:10]} O-O {[%emt 0:08:16]} 13. Bf4 {[%emt 0:05:46]} Re8 {[%emt 0:03:59]} 14. Nd2 {[%emt 0:14:27]} h6 {[%emt 0:23:03]} 15. e3 {[%emt 0:03:41]} Ng6 {[%emt 0:00:18]} 16. Bg3 {[%emt 0:00:07]} d5 {[%emt 0:01:45]} 17. Be2 {[%emt 0:00:18]} Bg4 {[%emt 0:04:18]} 18. Qd4 {[%emt 0:18:15]} Bxe2 {[%emt 0:01:55]} 19. Kxe2 {[%emt 0:00:06]} Qa5 {[%emt 0:08:02]} 20. b4 {[%emt 0:02:24]} Qa6 {[%emt 0:00:59]} 21. Rhc1 {[%emt 0:01:43]} Rad8 {[%emt 0:01:12]} 22. Ke1 {[%emt 0:01:05]} Ne4 {[%emt 0:02:18]} 23. c5 {[%emt 0:02:59]} f5 {[%emt 0:02:09]} 24. f3 {[%emt 0:02:10]} Ng5 {[%emt 0:00:49]} 25. Bd6 {[%emt 0:10:55]} Ne6 {[%emt 0:02:46]} 26. Qc3 {[%emt 0:00:21]} Nef4 {[%emt 0:01:29]} 0-1

[Event "WTCC-50 2018"]
[Site "Radebeul"]
[Date "2018.07.11"]
[Round "5"]
[White "Casper, Thomas"]
[Black "Gempe, Thomas"]
[Result "1-0"]
[ECO "A05"]
[WhiteElo "2354"]
[BlackElo "2178"]
[Annotator "NA"]
[PlyCount "87"]
[EventDate "2018.07.07"]
[EventType "team-tourn"]
[EventCountry "GER"]
[SourceTitle "playchess.com"]
[Source "ChessBase"]
[SourceQuality "1"]
[TimeControl "40/5400+30:1800+30"]

1. Nf3 {[%emt 0:00:00]} Nf6 {[%emt 0:01:13]} 2. g3 {[%emt 0:00:05]} d5 {[%emt 0:00:55]} 3. Bg2 {[%emt 0:00:23]} Bf5 {[%emt 0:00:48]} 4. d3 {[%emt 0:02:15]} h6 {[%emt 0:00:25]} 5. O-O {[%emt 0:01:24]} e6 {[%emt 0:00:17]} 6. Nbd2 {[%emt 0:01:40]} Be7 {[%emt 0:01:33]} 7. b3 {[%emt 0:04:51]} O-O {[%emt 0:00:33]} 8. Bb2 {[%emt 0:00:09]} c5 {[%emt 0:00:30]} 9. Ne5 {[%emt 0:02:22]} Nfd7 {[%emt 0:09:47]} 10. e4 {[%emt 0:09:02]} dxe4 {[%emt 0:00:59]} 11. dxe4 {[%emt 0:00:13]} Bh7 {[%emt 0:00:41]} 12. Nxd7 {[%emt 0:04:25]} Nxd7 {[%emt 0:02:22]} 13. Nc4 {[%emt 0:01:48]} Qc7 {[%emt 0:00:14]} 14. a4 {[%emt 0:01:56]} Bf6 {[%emt 0:05:45]} 15. Bxf6 {[%emt 0:14:49]} Nxf6 {[%emt 0:00:06]} 16. Qd6 {[%emt 0:00:44]} Rac8 {[%emt 0:04:14]} 17. f3 {[%emt 0:00:27]} Rfd8 {[%emt 0:01:17]} 18. Qxc7 {[%emt 0:00:30]} Rxc7 {[%emt 0:00:16]} 19. Rfd1 {[%emt 0:00:17]} Rcd7 {[%emt 0:00:16]} 20. Rxd7 {[%emt 0:00:33]} Rxd7 {[%emt 0:00:06]} 21. Kf2 {[%emt 0:01:48]} Ne8 {[%emt 0:04:52]} 22. Ke2 {[%emt 0:03:46]} f6 {[%emt 0:01:49]} 23. Rd1 {[%emt 0:05:48]} Rxd1 {[%emt 0:01:06]} 24. Kxd1 {[%emt 0:03:38]} Kf8 {[%emt 0:06:15]} 25. f4 {[%emt 0:15:48]} b6 {[%emt 0:00:28]} 26. Kd2 {[%emt 0:06:59]} Ke7 {[%emt 0:00:41]} 27. e5 {[%emt 0:00:57]} Kd7 {[%emt 0:03:12]} 28. c3 {[%emt 0:00:23]} Nc7 {[%emt 0:10:48]} 29. a5 {[%emt 0:05:43]} b5 {[%emt 0:01:49]} 30. Nd6 {[%emt 0:00:05]} fxe5 {[%emt 0:05:17]} 31. fxe5 {[%emt 0:00:12]} Bb1 {[%emt 0:07:23]} 32. Nb7 {[%emt 0:06:21]} c4 {[%emt 0:04:02]} 33. b4 {[%emt 0:01:57]} Bg6 {[%emt 0:02:59]} 34. Ke3 {[%emt 0:01:07]} Be8 {[%emt 0:08:13]} 35. Nd6 {[%emt 0:01:48]} Kd8 {[%emt 0:00:54]} 36. Nxe8 {[%emt 0:01:36]} Kxe8 {[%emt 0:01:06]} 37. Kd4 {[%emt 0:00:27]} Kd7 {[%emt 0:06:23]} 38. Kc5 {[%emt 0:00:16]} a6 {[%emt 0:00:05]} 39. Bc6+ {[%emt 0:00:44]} Ke7 {[%emt 0:00:45]} 40. Kb6 {[%emt 0:00:53]} Kd8 {[%emt 0:00:44]} 41. Kb7 {[%emt 0:09:03]} g5 {[%emt 0:06:23]} 42. g4 {[%emt 0:02:17]} Nd5 {[%emt 0:00:36]} 43. Kxa6 {[%emt 0:00:42]} Nxc3 {[%emt 0:00:17]} 44. Kb7 {[%emt 0:00:56]} 1-0

[Event "WTCC-50 2018"]
[Site "Radebeul"]
[Date "2018.07.11"]
[Round "5"]
[White "Paehtz, Thomas"]
[Black "Schultz, Andreas"]
[Result "1-0"]
[ECO "D02"]
[WhiteElo "2347"]
[BlackElo "2211"]
[Annotator "NA"]
[PlyCount "81"]
[EventDate "2018.07.07"]
[EventType "team-tourn"]
[EventCountry "GER"]
[SourceTitle "playchess.com"]
[Source "ChessBase"]
[SourceQuality "1"]
[TimeControl "40/5400+30:1800+30"]

1. d4 {[%emt 0:00:00]} d5 {[%emt 0:00:00]} 2. Nf3 {[%emt 0:00:00]} Nf6 {[%emt 0:00:05]} 3. Bf4 {[%emt 0:04:12]} e6 {[%emt 0:00:11]} 4. e3 {[%emt 0:01:04]} Bd6 {[%emt 0:01:31]} 5. Nbd2 {[%emt 0:16:21]} O-O {[%emt 0:02:26]} 6. Bg3 {[%emt 0:08:59]} b6 {[%emt 0:02:48]} 7. c3 {[%emt 0:00:40]} Bb7 {[%emt 0:00:41]} 8. Bd3 {[%emt 0:04:15]} Ne4 {[%emt 0:00:27]} 9. Qc2 {[%emt 0:14:32]} f5 {[%emt 0:00:39]} 10. Ne5 {[%emt 0:01:22]} Nxd2 {[%emt 0:07:32]} 11. Qxd2 {[%emt 0:00:05]} Nd7 {[%emt 0:00:30]} 12. Nxd7 {[%emt 0:06:08]} Qxd7 {[%emt 0:02:20]} 13. O-O-O {[%emt 0:01:16]} Qa4 {[%emt 0:05:59]} 14. Kb1 {[%emt 0:03:14]} Ba6 {[%emt 0:00:17]} 15. Bc2 {[%emt 0:00:12]} Qd7 {[%emt 0:00:43]} 16. Be5 {[%emt 0:01:59]} Rad8 {[%emt 0:12:14]} 17. f4 {[%emt 0:02:38]} Qe7 {[%emt 0:06:31]} 18. Qf2 {[%emt 0:00:40]} Bxe5 {[%emt 0:10:15]} 19. dxe5 {[%emt 0:00:12]} Kh8 {[%emt 0:01:45]} 20. g4 {[%emt 0:00:40]} Bb7 {[%emt 0:06:09]} 21. Rhg1 {[%emt 0:00:56]} c5 {[%emt 0:00:35]} 22. gxf5 {[%emt 0:00:13]} exf5 {[%emt 0:00:10]} 23. Rg5 {[%emt 0:00:24]} Bc8 {[%emt 0:02:36]} 24. Rdg1 {[%emt 0:08:45]} Rf7 {[%emt 0:05:24]} 25. Rh5 {[%emt 0:06:02]} Rg8 {[%emt 0:01:43]} 26. Qg2 {[%emt 0:03:02]} g6 {[%emt 0:04:00]} 27. Rg5 {[%emt 0:00:15]} Be6 {[%emt 0:03:13]} 28. h4 {[%emt 0:00:26]} Rfg7 {[%emt 0:02:14]} 29. Bb3 {[%emt 0:03:09]} Qf7 {[%emt 0:07:18]} 30. Qe2 {[%emt 0:00:11]} h6 {[%emt 0:02:27]} 31. R5g2 {[%emt 0:00:12]} h5 {[%emt 0:00:10]} 32. Rd1 {[%emt 0:01:47]} c4 {[%emt 0:00:27]} 33. Bc2 {[%emt 0:00:20]} Kh7 {[%emt 0:01:50]} 34. Rg5 {[%emt 0:00:42]} b5 {[%emt 0:00:52]} 35. Rdg1 {[%emt 0:00:38]} a5 {[%emt 0:00:29]} 36. Qd2 {[%emt 0:00:23]} Rh8 {[%emt 0:03:26]} 37. Bd1 {[%emt 0:00:12]} Kg8 {[%emt 0:00:14]} 38. Bf3 {[%emt 0:00:14]} Kf8 {[%emt 0:03:33]} 39. Qd4 {[%emt 0:00:22]} Qa7 {[%emt 0:03:12]} 40. Qxa7 {[%emt 0:01:02]} Rxa7 {[%emt 0:00:03]} 41. Rxg6 {[%emt 0:30:13]} 1-0

[Event "WTCC-50 2018"]
[Site "Radebeul"]
[Date "2018.07.11"]
[Round "5"]
[White "Goh, Cheng Hong"]
[Black "Dietze, Frank"]
[Result "1/2-1/2"]
[ECO "A05"]
[WhiteElo "2323"]
[BlackElo "2203"]
[Annotator "NA"]
[PlyCount "30"]
[EventDate "2018.07.07"]
[EventType "team-tourn"]
[EventCountry "GER"]
[SourceTitle "playchess.com"]
[Source "ChessBase"]
[SourceQuality "1"]
[TimeControl "40/5400+30:1800+30"]

1. Nf3 {[%emt 0:00:00]} Nf6 {[%emt 0:00:00]} 2. g3 {[%emt 0:00:00]} g6 {[%emt 0:00:00]} 3. b3 {[%emt 0:01:01]} Bg7 {[%emt 0:00:18]} 4. Bb2 {[%emt 0:00:05]} O-O {[%emt 0:00:09]} 5. Bg2 {[%emt 0:00:06]} d6 {[%emt 0:02:36]} 6. O-O {[%emt 0:01:16]} e5 {[%emt 0:01:14]} 7. d3 {[%emt 0:00:34]} c6 {[%emt 0:01:35]} 8. c4 {[%emt 0:00:08]} Nbd7 {[%emt 0:00:20]} 9. Qc2 {[%emt 0:04:51]} Re8 {[%emt 0:01:18]} 10. Nbd2 {[%emt 0:01:24]} Nh5 {[%emt 0:05:25]} 11. e4 {[%emt 0:04:04]} Nf8 {[%emt 0:04:59]} 12. d4 {[%emt 0:10:03]} c5 {[%emt 0:00:09]} 13. dxc5 {[%emt 0:05:25]} dxc5 {[%emt 0:00:04]} 14. Nb1 {[%emt 0:00:15]} Ne6 {[%emt 0:01:48]} 15. Nc3 {[%emt 0:07:13]} Nd4 1/2-1/2

[Event "WTCC-50 2018"]
[Site "Radebeul"]
[Date "2018.07.11"]
[Round "5"]
[White "Wolf, Volker"]
[Black "Tolhuizen, Ludo"]
[Result "1-0"]
[ECO "A00"]
[WhiteElo "2323"]
[BlackElo "2118"]
[Annotator "NA"]
[PlyCount "129"]
[EventDate "2018.07.07"]
[EventType "team-tourn"]
[EventCountry "GER"]
[SourceTitle "playchess.com"]
[Source "ChessBase"]
[SourceQuality "1"]
[TimeControl "40/5400+30:1800+30"]

1. g3 {[%emt 0:00:00]} d5 {[%emt 0:02:47]} 2. Bg2 {[%emt 0:00:00]} Nf6 {[%emt 0:00:13]} 3. d3 {[%emt 0:00:00]} c5 {[%emt 0:00:11]} 4. f4 {[%emt 0:01:08]} Nc6 {[%emt 0:00:04]} 5. Nf3 {[%emt 0:00:12]} g6 {[%emt 0:05:36]} 6. O-O {[%emt 0:00:47]} Bg7 {[%emt 0:00:04]} 7. Nc3 {[%emt 0:02:42]} d4 {[%emt 0:02:32]} 8. Na4 {[%emt 0:01:06]} Nd7 {[%emt 0:00:20]} 9. c4 {[%emt 0:00:22]} Rb8 {[%emt 0:05:00] A03: Bird's Opening with 1...d5} (9... O-O 10. e4 dxe3 11. Bxe3 Nd4 12. Rb1 Rb8 13. b4 Nxf3+ 14. Bxf3 cxb4 15. Rxb4 b6 16. d4 Nf6 17. Nc3 {0-1 (32) Morozevich,A (2758)-Svidler,P (2684) ICC INT 1999 CBM 074 [Ftacnik,L]}) 10. a3 {[%emt 0:03:37]} a6 {[%emt 0:03:10]} 11. Qc2 {[%emt 0:01:23]} O-O {[%emt 0:03:15]} 12. Rb1 {[%emt 0:02:04]} Qc7 {[%emt 0:01:50]} 13. Bd2 {[%emt 0:05:41]} b6 {[%emt 0:03:19]} 14. b4 {[%emt 0:02:35]} Bb7 {[%emt 0:00:43]} 15. bxc5 {[%emt 0:29:19]} bxc5 {[%emt 0:01:18]} 16. e4 $146 {[%emt 0:01:36]} dxe3 {[%emt 0:07:10]} 17. Bxe3 {[%emt 0:00:02]} Nd4 {[%emt 0:00:36]} 18. Nxd4 {[%emt 0:01:57]} cxd4 {[%emt 0:03:03]} 19. Bd2 {[%emt 0:01:27]} Bxg2 {[%emt 0:00:55]} 20. Kxg2 {[%emt 0:00:09]} e5 {[%emt 0:04:03]} 21. Kg1 {[%emt 0:02:14]} Qc6 {[%emt 0:00:34]} 22. Rb4 {[%emt 0:05:47]} Rfe8 {[%emt 0:04:36]} 23. Rxb8 {[%emt 0:04:09]} Rxb8 {[%emt 0:00:16]} 24. fxe5 {[%emt 0:00:14]} Nxe5 {[%emt 0:00:24]} 25. Bf4 {[%emt 0:00:15]} Re8 {[%emt 0:00:51]} 26. Bxe5 {[%emt 0:00:12]} Rxe5 {[%emt 0:00:19]} 27. Nb2 {[%emt 0:11:24]} Bf8 {[%emt 0:17:29]} 28. a4 {[%emt 0:03:21]} Qe8 {[%emt 0:00:53]} 29. Nd1 {[%emt 0:09:10]} Re2 {[%emt 0:04:56]} 30. Qb3 {[%emt 0:00:46]} Bh6 {[%emt 0:01:13]} 31. c5 {[%emt 0:01:07]} Re6 {[%emt 0:07:45]} 32. h3 {[%emt 0:02:05]} Bf8 {[%emt 0:01:40]} 33. Nf2 {[%emt 0:01:17]} Bxc5 {[%emt 0:01:57]} 34. Ng4 {[%emt 0:01:16]} Kg7 {[%emt 0:03:46]} 35. Qc4 {[%emt 0:04:53]} Ba7 {[%emt 0:00:33]} 36. Qc1 {[%emt 0:01:33]} Qe7 {[%emt 0:07:05]} 37. Qh6+ {[%emt 0:01:07]} Kg8 {[%emt 0:00:20]} 38. Rc1 {[%emt 0:00:25]} Re1+ {[%emt 0:01:03]} 39. Rxe1 {[%emt 0:00:07]} Qxe1+ {[%emt 0:00:01]} 40. Kg2 {[%emt 0:00:17]} Qe2+ {[%emt 0:01:47]} 41. Kg1 {[%emt 0:30:34]} Qf3 {[%emt 0:33:49]} 42. Qf4 {[%emt 0:00:00]} Qxf4 {[%emt 0:00:00]} 43. gxf4 {[%emt 0:00:00]} f5 {[%emt 0:00:00]} 44. Nf6+ {[%emt 0:00:00]} Kf7 {[%emt 0:00:00]} 45. Nxh7 {[%emt 0:00:00]} Bb8 {[%emt 0:00:00]} 46. Ng5+ {[%emt 0:00:00]} Ke7 {[%emt 0:00:00]} 47. Nf3 {[%emt 0:00:00]} Bxf4 {[%emt 0:00:00]} 48. Kg2 {[%emt 0:00:00]} Be3 {[%emt 0:00:00]} 49. Ne5 {[%emt 0:00:00] [#]} g5 $1 {[%emt 0:00:00]} 50. Nc6+ {[%emt 0:00:00]} Kd6 {[%emt 0:00:00]} 51. Nb4 {[%emt 0:00:00]} Bc1 {[%emt 0:00:34]} 52. Kg3 {[%emt 0:00:00]} Ba3 $2 {[%emt 0:00:32]} 53. Nc2 $1 {[%emt 0:01:45]} Bb2 {[%emt 0:02:50]} 54. Nb4 {[%emt 0:02:28]} Ba3 {[%emt 0:01:45]} ({Better is} 54... Bc1 $17 55. h4 gxh4+ 56. Kxh4 Ba3) 55. Nc2 {[%emt 0:00:02]} Bb2 {[%emt 0:00:04]} 56. Nb4 {[%emt 0:00:04]} Ke6 {[%emt 0:00:42]} 57. Nxa6 {[%emt 0:00:07]} Ba3 {[%emt 0:00:38]} 58. Nc7+ {[%emt 0:01:09]} Ke5 {[%emt 0:00:16]} 59. a5 {[%emt 0:00:47]} Bc5 {[%emt 0:00:36]} 60. a6 {[%emt 0:00:59]} Kd6 {[%emt 0:02:33]} 61. a7 {[%emt 0:00:33]} Bxa7 {[%emt 0:00:05]} 62. Nb5+ {[%emt 0:00:01]} Kc6 {[%emt 0:00:15]} 63. Nxa7+ {[%emt 0:00:06]} Kc5 {[%emt 0:00:28]} 64. Nc8 {[%emt 0:00:51]} Kb4 {[%emt 0:00:35]} 65. Nd6 {[%emt 0:01:14]} 1-0